bitfinex/quotes_BTCUSD_20250607
["timestamp","ask_amount","ask_price","bid_price","bid_amount"]
[1749323402147,0.66847961,105880.0,105870.0,0.35590033]
[1749323402372,0.66848021,105880.0,105870.0,0.93666188]
[1749323402593,0.47133666,105880.0,105870.0,0.94610689]
[1749323402830,0.47133663,105880.0,105870.0,0.95555181]
[1749323403055,0.06962615,105880.0,105870.0,0.95555181]
[1749323403295,0.0873217,105880.0,105870.0,0.95555181]
[1749323403513,0.09676617,105880.0,105870.0,0.95555181]
[1749323403732,0.09676615,105880.0,105870.0,0.95555181]
[1749323403945,0.09381247,105880.0,105870.0,0.95555181]
[1749323404097,0.49552215,105880.0,105870.0,0.95555181]
[1749323404307,0.48078022,105880.0,105870.0,0.95555181]
[1749323404747,0.66848082,105880.0,105870.0,0.71435948]
[1749323404928,0.64783161,105880.0,105870.0,0.72890033]
[1749323405130,0.6684801,105880.0,105870.0,0.72890033]
[1749323405375,0.66848021,105880.0,105870.0,0.72890033]
[1749323405607,0.66552572,105880.0,105870.0,0.72890033]
[1749323405800,0.66552572,105880.0,105870.0,0.35590033]
[1749323405801,0.65078565,105880.0,105870.0,0.35590033]
[1749323406024,0.66847974,105880.0,105870.0,0.72890033]
[1749323406256,0.66552547,105880.0,105870.0,0.72890033]
[1749323406423,0.66552504,105880.0,105870.0,0.72890033]
[1749323406624,0.66552504,105880.0,105870.0,0.618]
[1749323406625,0.6573866,105880.0,105870.0,0.618]
[1749323406827,0.66034058,105880.0,105870.0,0.618]
[1749323407046,0.6573866,105880.0,105870.0,0.618]
[1749323407245,0.6780342,105880.0,105870.0,0.618]
[1749323407478,0.27632453,105880.0,105870.0,0.618]
[1749323407682,0.67508036,105880.0,105870.0,0.618]
[1749323407847,0.6780343,105880.0,105870.0,0.618]
[1749323408053,0.67803429,105880.0,105870.0,0.618]
[1749323408693,0.65078554,105880.0,105870.0,0.618]
[1749323408868,0.66551318,105880.0,105870.0,0.618]
[1749323409064,0.64783161,105880.0,105870.0,0.618]
[1749323409271,0.65078554,105880.0,105870.0,0.618]
[1749323409477,0.66846711,105880.0,105870.0,0.618]
[1749323409685,0.24907586,105880.0,105870.0,0.618]
[1749323409888,0.65078554,105880.0,105870.0,0.618]
[1749323410222,0.64783161,105880.0,105870.0,0.618]
[1749323410376,0.66846711,105880.0,105870.0,0.618]
[1749323410575,0.64783161,105880.0,105870.0,0.618]
[1749323410846,0.66551431,105880.0,105870.0,0.618]
[1749323411038,0.65078554,105880.0,105870.0,0.618]
[1749323411238,0.66551422,105880.0,105870.0,0.618]
[1749323411549,0.65078554,105880.0,105870.0,0.618]
[1749323412136,0.66551411,105880.0,105870.0,0.618]
[1749323412279,0.65078554,105880.0,105870.0,0.618]
[1749323412629,0.64783161,105880.0,105870.0,0.618]
[1749323412781,0.66846808,105880.0,105870.0,0.618]
[1749323412982,0.64783161,105880.0,105870.0,0.618]
[1749323413193,1.07044946,105880.0,105870.0,0.618]
[1749323413709,0.04261119,105880.0,105870.0,0.95563216]
[1749323414026,0.04556504,105880.0,105870.0,1.05957434]
[1749323414228,0.05205581,105880.0,105870.0,1.05957434]
[1749323414460,0.05205584,105880.0,105870.0,1.05957434]
[1749323414655,0.03437252,105880.0,105870.0,1.05957434]
[1749323414862,0.44566252,105880.0,105870.0,1.05957434]
[1749323415055,0.46334584,105880.0,105870.0,1.05957434]
[1749323415276,0.65519262,105880.0,105870.0,1.05012942]
[1749323415504,0.23566377,105880.0,105870.0,1.05957452]
[1749323415718,0.25039336,105880.0,105870.0,1.05957452]
[1749323416356,0.22326613,105880.0,105870.0,1.05957452]
[1749323416549,0.6427949,105880.0,105870.0,1.05957452]
[1749323416762,0.62511166,105880.0,105870.0,1.05957452]
[1749323416967,0.62806536,105880.0,105870.0,1.05957452]
[1749323417202,0.62511166,105880.0,105870.0,1.04068424]
[1749323417513,0.21677563,105880.0,105870.0,1.04068424]
[1749323417639,0.23150649,105880.0,105870.0,1.04068424]
[1749323417992,0.21382193,105880.0,105870.0,1.04068424]
[1749323418218,0.23150648,105880.0,105870.0,1.05012942]
[1749323418445,0.21382193,105880.0,105870.0,1.05012942]
[1749323418648,0.23150634,105880.0,105870.0,1.05012942]
[1749323418873,0.23150632,105880.0,105870.0,1.04068424]
[1749323419077,0.20437755,105880.0,105870.0,1.04068424]
[1749323419411,0.22206178,105880.0,105870.0,1.04068424]
[1749323419622,0.2220619,105880.0,105870.0,1.04068424]
[1749323419902,0.22206193,105880.0,105870.0,1.04068424]
[1749323420325,0.22206192,105880.0,105870.0,1.04068442]
[1749323420538,0.19493308,105880.0,105870.0,1.04068442]
[1749323420802,0.21261746,105880.0,105870.0,1.04068442]
[1749323420999,0.21261746,105880.0,105870.0,1.05012978]
[1749323421212,0.00604,105880.0,105870.0,1.09971988]
[1749323421416,0.02492858,105880.0,105870.0,1.09971988]
[1749323421641,0.0615017,105880.0,105870.0,1.09971988]
[1749323422168,0.05205723,105880.0,105870.0,1.09971988]
[1749323422342,0.03437252,105880.0,105870.0,1.09971988]
[1749323422542,0.05205718,105880.0,105870.0,1.09971988]
[1749323422975,0.03437252,105880.0,105870.0,1.09971988]
[1749323423182,0.05205555,105880.0,105870.0,1.09971988]
[1749323423411,0.06150002,105880.0,105870.0,1.09971988]
[1749323424061,0.04381699,105880.0,105870.0,1.09971988]
[1749323424301,0.06150002,105880.0,105870.0,1.09971988]
[1749323424553,0.25983775,105880.0,105870.0,1.02408407]
[1749323424803,0.24215472,105880.0,105870.0,1.02408416]
[1749323425252,0.25983565,105880.0,105870.0,1.02408416]
[1749323425700,0.24215472,105880.0,105870.0,0.99577779]
[1749323425946,0.25983818,105880.0,105870.0,0.99577779]
[1749323426374,0.24215472,105880.0,105870.0,0.99577779]
[1749323426594,0.25983818,105880.0,105870.0,0.99577779]
[1749323426814,0.63324474,105880.0,105870.0,0.44298033]
[1749323427019,0.66749761,105880.0,105870.0,0.72922033]
[1749323427275,0.66454394,105880.0,105870.0,0.35590033]
[1749323427486,0.64981513,105880.0,105870.0,0.72910033]
[1749323427702,0.66749757,105880.0,105870.0,0.72910033]
[1749323427916,0.64981519,105880.0,105870.0,0.72910033]
[1749323428130,0.66749778,105880.0,105870.0,0.72910033]
[1749323428343,0.64686128,105880.0,105870.0,0.72910033]
[1749323428588,0.64981519,105880.0,105870.0,0.72910033]
[1749323428822,0.6674977,105880.0,105870.0,0.72910033]
[1749323429071,0.66749771,105880.0,105870.0,0.72910033]
[1749323429279,0.6498152,105880.0,105870.0,0.72910033]
[1749323429490,0.66454365,105880.0,105870.0,0.72910033]
[1749323429687,0.64686128,105880.0,105870.0,0.72910033]
[1749323429909,0.2298222,105880.0,105870.0,0.72910033]
[1749323430112,0.2344585,105880.0,105870.0,0.73854587]
[1749323430319,0.23150459,105880.0,105870.0,0.73854587]
[1749323430523,0.21677611,105880.0,105870.0,0.72910033]
[1749323430725,0.23445649,105880.0,105870.0,0.72910033]
[1749323431026,0.23150258,105880.0,105870.0,0.72910033]
[1749323431236,0.23445651,105880.0,105870.0,0.73854587]
[1749323431449,0.23150259,105880.0,105870.0,0.72910033]
[1749323431655,0.23150502,105880.0,105870.0,0.92745661]
[1749323431862,0.23445918,105880.0,105870.0,0.92745661]
[1749323432461,0.23445919,105880.0,105870.0,0.92745661]
[1749323432660,0.23445917,105880.0,105870.0,0.92745661]
[1749323432877,0.23445919,105880.0,105870.0,0.92745661]
[1749323433017,0.23445919,105880.0,105870.0,0.93690188]
[1749323433218,0.2138222,105880.0,105870.0,0.94634706]
[1749323433415,0.23150648,105880.0,105870.0,0.94634706]
[1749323433627,0.21677599,105880.0,105870.0,0.94634706]
[1749323433839,0.23446027,105880.0,105870.0,0.94634706]
[1749323434627,0.2138222,105880.0,105870.0,0.94634706]
[1749323434810,0.23446298,105880.0,105870.0,0.94634706]
[1749323435009,0.23150918,105880.0,105870.0,0.94634706]
[1749323435220,0.216776,105880.0,105870.0,0.94634706]
[1749323435428,0.21677599,105880.0,105870.0,0.94634706]
[1749323435585,0.23446294,105880.0,105870.0,0.70138706]
[1749323436049,0.23446295,105880.0,105870.0,0.70138706]
[1749323436473,0.216776,105880.0,105870.0,0.70138706]
[1749323436600,0.23150917,105880.0,105870.0,0.70138706]
[1749323436803,0.2138222,105880.0,105870.0,0.70138706]
[1749323437000,0.23150917,105880.0,105870.0,0.70138706]
[1749323437205,0.216776,105880.0,105870.0,0.70138706]
[1749323437433,0.23446297,105880.0,105870.0,0.70138706]
[1749323437888,0.23446296,105880.0,105870.0,0.70138706]
[1749323438191,0.23446297,105880.0,105870.0,0.70138706]
[1749323438342,0.23151224,105880.0,105870.0,0.70138706]
[1749323438543,0.2138222,105880.0,105870.0,0.70138706]
[1749323438761,0.23446604,105880.0,105870.0,0.70138706]
[1749323439701,0.216776,105880.0,105870.0,0.70138706]
[1749323439931,0.23151224,105880.0,105870.0,0.70138706]
[1749323440048,0.23151225,105880.0,105870.0,0.70138706]
[1749323440258,0.2138222,105880.0,105870.0,0.70138706]
[1749323440498,0.23151225,105880.0,105870.0,0.70138706]
[1749323440653,0.216776,105880.0,105870.0,0.70138706]
[1749323440859,0.23151224,105880.0,105870.0,0.70138706]
[1749323441065,0.23446604,105880.0,105870.0,0.70138706]
[1749323441320,0.63620963,105880.0,105870.0,0.70138706]
[1749323441629,0.61556579,105880.0,105870.0,0.70138706]
[1749323441855,0.61851959,105880.0,105870.0,0.70138706]
[1749323442061,0.63621105,105880.0,105870.0,0.70138706]
[1749323442262,0.61851959,105880.0,105870.0,0.70138706]
[1749323442510,0.61556579,105880.0,105870.0,0.70138706]
[1749323442716,0.63621105,105880.0,105870.0,0.70138706]
[1749323443539,0.61851959,105880.0,105870.0,0.70138706]
[1749323443762,0.63621213,105880.0,105870.0,0.70138706]
[1749323443999,0.43787417,105880.0,105870.0,0.32818706]
[1749323444210,0.04677088,105880.0,105870.0,0.74161198]
[1749323444411,0.04677089,105880.0,105870.0,0.74161198]
[1749323444615,0.06446371,105880.0,105870.0,0.74161198]
[1749323444793,0.06446369,105880.0,105870.0,0.74161198]
[1749323445000,0.07390841,105880.0,105870.0,0.74161198]
[1749323445341,0.07095471,105880.0,105870.0,0.74161198]
[1749323445561,0.05621552,105880.0,105870.0,0.74161198]
[1749323445795,0.07390841,105880.0,105870.0,0.74161198]
[1749323446443,0.25335755,105880.0,105870.0,0.74161216]
[1749323446664,0.25335755,105880.0,105870.0,0.95615216]
[1749323447123,0.23271096,105880.0,105870.0,0.95615216]
[1749323447335,0.2504039,105880.0,105870.0,0.95615216]
[1749323447536,0.64565699,105880.0,105870.0,0.95615216]
[1749323447719,0.64270329,105880.0,105870.0,0.95615216]
[1749323447922,0.64565699,105880.0,105870.0,0.95615216]
[1749323448486,0.64565688,105880.0,105870.0,0.95615216]
[1749323448678,0.63621241,105880.0,105870.0,0.94670706]
[1749323449101,0.63325871,105880.0,105870.0,0.94670706]
[1749323449506,0.62381415,105880.0,105870.0,0.93726188]
[1749323449707,0.62676785,105880.0,105870.0,0.93726188]
[1749323449910,0.22502426,105880.0,105870.0,0.93726188]
[1749323450378,0.22207056,105880.0,105870.0,0.93726188]
[1749323450535,0.20733143,105880.0,105870.0,0.93726188]
[1749323450735,0.20437773,105880.0,105870.0,0.93726188]
[1749323450965,0.2250243,105880.0,105870.0,0.93726188]
[1749323451490,0.2250243,105880.0,105870.0,0.69222188]
[1749323452041,0.22502445,105880.0,105870.0,0.69222188]
[1749323452670,0.20733143,105880.0,105870.0,0.69222188]
[1749323452962,0.22502445,105880.0,105870.0,0.69222188]
[1749323453370,0.20733143,105880.0,105870.0,0.69222188]
[1749323453572,0.22502445,105880.0,105870.0,0.69222188]
[1749323453960,0.20733143,105880.0,105870.0,0.70812188]
[1749323454158,0.20733143,105880.0,105870.0,0.72342188]
[1749323454618,0.22502445,105880.0,105870.0,0.69222188]
[1749323455525,0.20733143,105880.0,105870.0,0.68277661]
[1749323455724,0.21262719,105880.0,105870.0,0.6827767]
[1749323455949,0.19493308,105880.0,105870.0,0.6827767]
[1749323456153,0.21558078,105880.0,105870.0,0.6827767]
[1749323456395,0.21558073,105880.0,105870.0,0.6827767]
[1749323457126,0.61732431,105880.0,105870.0,0.6827767]
[1749323457329,0.61437054,105880.0,105870.0,0.6827767]
[1749323457525,0.59963045,105880.0,105870.0,0.6827767]
[1749323457753,0.59667667,105880.0,105870.0,0.6827767]
[1749323457963,0.61732432,105880.0,105870.0,0.48430033]
[1749323458188,0.61732431,105880.0,105870.0,0.48430033]
[1749323458391,0.63232431,105880.0,105870.0,0.48430033]
[1749323458622,0.64782443,105880.0,105870.0,0.48430033]
[1749323458830,0.64782446,105880.0,105870.0,0.68265679]
[1749323459040,0.64487053,105880.0,105870.0,0.68265679]
[1749323459248,0.63013053,105880.0,105870.0,0.48430033]
[1749323459453,0.63013052,105880.0,105870.0,0.48430033]
[1749323459634,0.62717667,105880.0,105870.0,0.48430033]
[1749323460000,0.64782354,105880.0,105870.0,0.48430033]
[1749323460268,0.64782354,105880.0,105870.0,0.18351948]
[1749323460269,1.04956713,105880.0,105870.0,0.18351948]
[1749323460465,1.04956713,105880.0,105870.0,0.37336]
[1749323460674,0.19835628,105870.0,105860.0,0.29736317]
[1749323460886,0.65124765,105870.0,105860.0,0.76716265]
[1749323461090,0.63355392,105870.0,105860.0,0.76716265]
[1749323461296,0.65124783,105870.0,105860.0,0.76716265]
[1749323461456,0.64829382,105870.0,105860.0,0.72938033]
[1749323461653,0.63355404,105870.0,105860.0,0.72938033]
[1749323461859,0.65239095,105870.0,105860.0,0.72938033]
[1749323462262,0.65237797,105870.0,105860.0,0.72938033]
[1749323462719,0.63469756,105870.0,105860.0,0.72938033]
[1749323462919,0.65337801,105870.0,105860.0,0.72938033]
[1749323463656,0.65337802,105870.0,105860.0,0.72938033]
[1749323464393,0.65337137,105870.0,105860.0,0.72938033]
[1749323464633,0.65337138,105870.0,105860.0,0.72938033]
[1749323465030,0.65041718,105870.0,105860.0,0.72938033]
[1749323465390,0.65337138,105870.0,105860.0,0.72938033]
[1749323466109,0.25162779,105870.0,105860.0,0.72938033]
[1749323466315,0.63274339,105870.0,105860.0,0.72938033]
[1749323466577,0.65337138,105870.0,105860.0,0.72938033]
[1749323467348,0.67104517,105870.0,105860.0,0.72938033]
[1749323468219,0.66808737,105870.0,105860.0,0.72938033]
[1749323468392,0.65041718,105870.0,105860.0,0.72938033]
[1749323468783,0.67104157,105870.0,105860.0,0.72938033]
[1749323469875,0.67104149,105870.0,105860.0,0.72938033]
[1749323470092,0.66808729,105870.0,105860.0,0.72938033]
[1749323470299,0.65337138,105870.0,105860.0,0.72938033]
[1749323470499,0.65041718,105870.0,105860.0,0.72938033]
[1749323470733,0.65337138,105870.0,105860.0,0.34143948]
[1749323470928,0.67104134,105870.0,105860.0,0.71471948]
[1749323471064,1.07278493,105870.0,105860.0,0.24504]
[1749323471409,1.07278493,105870.0,105860.0,0.33216]
[1749323471637,1.07278493,105870.0,105860.0,0.6184]
[1749323471774,1.07277261,105870.0,105860.0,0.6184]
[1749323471978,1.05216077,105870.0,105860.0,0.6184]
[1749323472410,1.0551153,105870.0,105860.0,0.6184]
[1749323472567,1.05216077,105870.0,105860.0,0.6184]
[1749323472995,1.08120606,105870.0,105860.0,0.61836]
[1749323473225,1.07773182,105870.0,105860.0,0.61836]
[1749323473414,1.07973016,105870.0,105860.0,0.61836]
[1749323473628,1.08173007,105870.0,105860.0,0.61836]
[1749323473864,1.07972996,105870.0,105860.0,0.61836]
[1749323474137,1.06007494,105870.0,105860.0,0.61836]
[1749323474355,0.20784065,105850.0,105840.0,0.11454085]
[1749323474570,0.20784065,105850.0,105840.0,0.58442033]
[1749323475006,0.22434065,105850.0,105840.0,0.58442033]
[1749323476615,0.22634065,105850.0,105840.0,0.1]
[1749323476815,0.64332454,105850.0,105840.0,0.47348]
[1749323476955,0.64532454,105850.0,105840.0,0.47348]
[1749323477517,0.24334065,105850.0,105840.0,0.47348]
[1749323481699,0.24334065,105850.0,105840.0,0.4734]
[1749323484990,0.22834065,105850.0,105840.0,0.4734]
[1749323485774,0.22834065,105850.0,105840.0,0.6718126]
[1749323485976,0.21184065,105850.0,105840.0,0.6718126]
[1749323486172,0.20239377,105850.0,105840.0,0.6718126]
[1749323486776,0.01344661,105850.0,105840.0,1.23533227]
[1749323486981,0.0228934,105850.0,105840.0,0.83334838]
[1749323487152,0.01344661,105850.0,105840.0,0.83334838]
[1749323487379,0.03234028,105850.0,105840.0,0.83334838]
[1749323487995,0.0228934,105850.0,105840.0,0.83334838]
[1749323488690,0.0228934,105850.0,105840.0,0.86161211]
[1749323490838,0.01344661,105850.0,105840.0,0.86164116]
[1749323491043,0.02289349,105850.0,105840.0,0.86164116]
[1749323491260,0.004,105850.0,105840.0,0.86164116]
[1749323491478,0.01344661,105850.0,105840.0,0.86164116]
[1749323491663,0.0228934,105850.0,105840.0,0.86164116]
[1749323493071,0.03234037,105850.0,105840.0,0.86164116]
[1749323493267,0.0228934,105850.0,105840.0,1.26353992]
[1749323493671,0.03234037,105850.0,105840.0,1.26353992]
[1749323493968,0.0228934,105850.0,105840.0,1.26353992]
[1749323494393,0.03234037,105850.0,105840.0,1.26353992]
[1749323494693,0.03234028,105850.0,105840.0,1.26353992]
[1749323495635,0.04178725,105850.0,105840.0,1.26353992]
[1749323497700,0.04178725,105850.0,105840.0,1.30132224]
[1749323498429,0.0512344,105850.0,105840.0,1.30132224]
[1749323499373,0.04178725,105850.0,105840.0,1.30132224]
[1749323499832,0.05123431,105850.0,105840.0,1.30132224]
[1749323500073,0.05123494,105850.0,105840.0,1.30132224]
[1749323501446,0.05123494,105850.0,105840.0,1.27302946]
[1749323501659,0.05123494,105850.0,105840.0,1.30135742]
[1749323502380,0.23073477,105850.0,105840.0,1.3013576]
[1749323503925,0.23073477,105850.0,105840.0,1.31080528]
[1749323507836,0.23073477,105850.0,105840.0,0.90890652]
[1749323510765,0.22128789,105850.0,105840.0,0.89001107]
[1749323510969,0.22128789,105850.0,105840.0,0.85222875]
[1749323511384,0.22128789,105850.0,105840.0,0.83582875]
[1749323511592,0.22128789,105850.0,105840.0,0.82052875]
[1749323511912,0.22128789,105850.0,105840.0,0.81108089]
[1749323512108,0.21184092,105850.0,105840.0,0.8299767]
[1749323512307,0.21184092,105850.0,105840.0,1.06560893]
[1749323512650,0.21184092,105850.0,105840.0,1.07505679]
[1749323512849,0.21184092,105850.0,105840.0,1.08450456]
[1749323513090,0.21184092,105850.0,105840.0,1.09395224]
[1749323513314,0.02289331,105850.0,105840.0,1.0939517]
[1749323513503,0.04178734,105850.0,105840.0,1.16343402]
[1749323513658,0.05948769,105850.0,105840.0,1.16343402]
[1749323513860,0.05948775,105850.0,105840.0,1.16343402]
[1749323514080,0.05948775,105850.0,105840.0,1.56533278]
[1749323514908,0.05948775,105850.0,105840.0,1.16343402]
[1749323515702,0.05948775,105850.0,105840.0,1.13510606]
[1749323516466,0.04178734,105850.0,105840.0,1.13510606]
[1749323516673,0.2578817,105850.0,105840.0,1.12565847]
[1749323516923,0.03234082,105850.0,105840.0,1.12565847]
[1749323517083,0.05004123,105850.0,105840.0,1.52755723]
[1749323517294,0.24843518,105850.0,105840.0,1.52755723]
[1749323517499,0.04178815,105850.0,105840.0,1.52755723]
[1749323517702,0.03234082,105850.0,105840.0,1.53700482]
[1749323517929,0.05948847,105850.0,105840.0,1.53700482]
[1749323518146,0.24843563,105850.0,105840.0,1.09400945]
[1749323518382,0.25288834,105850.0,105840.0,1.09401051]
[1749323518591,0.66303989,105850.0,105840.0,0.85781568]
[1749323518797,0.66303977,105850.0,105840.0,0.8672639]
[1749323519023,0.66303977,105850.0,105840.0,1.05622837]
[1749323519478,0.66303978,105850.0,105840.0,1.05622837]
[1749323519740,0.65359253,105850.0,105840.0,1.05622837]
[1749323520192,0.65359254,105850.0,105840.0,1.07512454]
[1749323520413,0.63589271,105850.0,105840.0,1.0656765]
[1749323520623,0.65359254,105850.0,105840.0,1.0656765]
[1749323520845,0.63589271,105850.0,105840.0,1.0656765]
[1749323520962,0.65359254,105850.0,105840.0,1.0656765]
[1749323521397,0.63589271,105850.0,105840.0,1.0656765]
[1749323521825,0.65359257,105850.0,105840.0,1.0656765]
[1749323522297,0.65359257,105850.0,105840.0,1.07512454]
[1749323522534,0.63589271,105850.0,105840.0,1.08457249]
[1749323522774,0.63589271,105850.0,105840.0,1.05622837]
[1749323522775,0.65359258,105850.0,105840.0,1.05622837]
[1749323522988,0.65359255,105850.0,105840.0,1.05622837]
[1749323523212,0.63589271,105850.0,105840.0,1.05622837]
[1749323523407,0.63589271,105850.0,105840.0,0.81114837]
[1749323523613,0.65359255,105850.0,105840.0,0.81114837]
[1749323523842,0.65359259,105850.0,105840.0,0.8205965]
[1749323524043,0.63589271,105850.0,105840.0,0.8205965]
[1749323524712,0.65359263,105850.0,105840.0,0.8205965]
[1749323525146,0.6441453,105850.0,105840.0,0.61261568]
[1749323525346,0.62644538,105850.0,105840.0,0.61261568]
[1749323525552,0.62644538,105850.0,105840.0,0.12835535]
[1749323525778,0.62644538,105850.0,105840.0,0.18708]
[1749323525974,0.64414321,105850.0,105840.0,0.47332]
[1749323526176,0.64408365,105850.0,105840.0,0.47332]
[1749323526388,0.64408361,105850.0,105840.0,0.47332]
[1749323526596,0.62644538,105850.0,105840.0,0.47332]
[1749323527242,0.64408361,105850.0,105840.0,0.47332]
[1749323527773,0.62644538,105850.0,105840.0,0.47332]
[1749323527975,0.64408361,105850.0,105840.0,0.47332]
[1749323528402,0.62644538,105850.0,105840.0,0.47332]
[1749323528612,0.64408361,105850.0,105840.0,0.47332]
[1749323528817,0.62644538,105850.0,105840.0,0.47332]
[1749323529029,0.64408361,105850.0,105840.0,0.47332]
[1749323529719,0.64408379,105850.0,105840.0,0.47332]
[1749323530149,0.64408612,105850.0,105840.0,0.47332]
[1749323530353,0.64408527,105850.0,105840.0,0.47332]
[1749323530557,0.64408539,105850.0,105840.0,0.47332]
[1749323530766,0.64408579,105850.0,105840.0,0.47332]
[1749323531392,0.62644538,105850.0,105840.0,0.47332]
[1749323531601,0.64408579,105850.0,105840.0,0.47332]
[1749323531777,0.62644538,105850.0,105840.0,0.47332]
[1749323531987,0.62644538,105850.0,105840.0,0.1]
[1749323531988,0.64408579,105850.0,105840.0,0.1]
[1749323532201,0.64408579,105850.0,105840.0,0.47356]
[1749323532379,0.64408579,105850.0,105840.0,0.1]
[1749323532592,1.04598455,105850.0,105840.0,0.47352]
[1749323532806,1.04598455,105850.0,105840.0,0.47356]
[1749323533004,1.02834414,105850.0,105840.0,0.47356]
[1749323533208,1.04598393,105850.0,105840.0,0.47356]
[1749323533583,1.02834414,105850.0,105840.0,0.47356]
[1749323533784,1.04598401,105850.0,105840.0,0.47356]
[1749323533992,0.62644538,105850.0,105840.0,0.47356]
[1749323534407,0.64414492,105850.0,105840.0,0.47356]
[1749323534623,0.62644538,105850.0,105840.0,0.47356]
[1749323534827,0.64414784,105850.0,105840.0,0.47356]
[1749323535007,0.64414831,105850.0,105840.0,0.47356]
[1749323535472,0.64414849,105850.0,105840.0,0.47356]
[1749323535688,0.64414923,105850.0,105840.0,0.47356]
[1749323535902,0.64414953,105850.0,105840.0,0.47356]
[1749323536120,0.62644538,105850.0,105840.0,0.47356]
[1749323536739,0.64414977,105850.0,105840.0,0.47356]
[1749323536972,0.62644538,105850.0,105840.0,0.47356]
[1749323537218,0.64414977,105850.0,105840.0,0.47356]
[1749323537434,0.62644538,105850.0,105840.0,0.47356]
[1749323537827,0.64414976,105850.0,105840.0,0.47356]
[1749323538504,0.64414974,105850.0,105840.0,0.47356]
[1749323538727,0.62644538,105850.0,105840.0,0.47356]
[1749323538938,0.64414975,105850.0,105840.0,0.47356]
[1749323539632,0.62644538,105850.0,105840.0,0.47356]
[1749323539885,0.64414975,105850.0,105840.0,0.47356]
[1749323540097,0.62644538,105850.0,105840.0,0.47356]
[1749323541140,0.64414977,105850.0,105840.0,0.47356]
[1749323541355,0.62644538,105850.0,105840.0,0.47356]
[1749323541988,0.64414978,105850.0,105840.0,0.47356]
[1749323542198,0.64414979,105850.0,105840.0,0.47356]
[1749323542416,0.6441498,105850.0,105840.0,0.47356]
[1749323543220,0.64418979,105850.0,105840.0,0.47356]
[1749323543717,0.62648538,105850.0,105840.0,0.47356]
[1749323543874,0.64418978,105850.0,105840.0,0.47356]
[1749323544076,0.62648538,105850.0,105840.0,0.47356]
[1749323544262,0.64418978,105850.0,105840.0,0.47356]
[1749323544457,0.62648538,105850.0,105840.0,0.47356]
[1749323544658,0.64418978,105850.0,105840.0,0.47356]
[1749323545072,0.62648538,105850.0,105840.0,0.47356]
[1749323545274,0.64416553,105850.0,105840.0,0.47356]
[1749323545859,0.64416558,105850.0,105840.0,0.47356]
[1749323546064,0.64416559,105850.0,105840.0,0.47356]
[1749323546304,0.62648538,105850.0,105840.0,0.47356]
[1749323546516,0.64416559,105850.0,105840.0,0.47356]
[1749323546692,0.62648538,105850.0,105840.0,0.47356]
[1749323546895,0.64416558,105850.0,105840.0,0.47356]
[1749323547284,0.62648538,105850.0,105840.0,0.47356]
[1749323547799,0.6441656,105850.0,105840.0,0.47356]
[1749323548223,0.62648538,105850.0,105840.0,0.47356]
[1749323548389,0.64416561,105850.0,105840.0,0.47356]
[1749323549327,0.62648538,105850.0,105840.0,0.47356]
[1749323550076,0.64417091,105850.0,105840.0,0.47356]
[1749323550455,0.62648538,105850.0,105840.0,0.47356]
[1749323550664,0.64417092,105850.0,105840.0,0.47356]
[1749323550862,0.62648538,105850.0,105840.0,0.47356]
[1749323551274,0.64417092,105850.0,105840.0,0.47356]
[1749323551475,0.62648538,105850.0,105840.0,0.47356]
[1749323551917,0.64417094,105850.0,105840.0,0.47356]
[1749323552213,0.62648538,105850.0,105840.0,0.47356]
[1749323552551,0.64417092,105850.0,105840.0,0.47356]
[1749323552958,0.64417093,105850.0,105840.0,0.47356]
[1749323553185,0.62648538,105850.0,105840.0,0.47356]
[1749323553419,0.64417094,105850.0,105840.0,0.47356]
[1749323553830,0.64417095,105850.0,105840.0,0.47356]
[1749323554181,0.62648538,105850.0,105840.0,0.47356]
[1749323554372,0.64417095,105850.0,105840.0,0.47356]
[1749323554806,0.64417093,105850.0,105840.0,0.47356]
[1749323554987,0.64417095,105850.0,105840.0,0.47356]
[1749323555209,0.24227108,105850.0,105840.0,0.47356]
[1749323555430,0.21067108,105850.0,105840.0,0.70377269]
[1749323555628,0.61256754,105850.0,105840.0,0.71322073]
[1749323555824,0.61256769,105850.0,105840.0,0.71322073]
[1749323556074,0.61258442,105850.0,105840.0,0.71322073]
[1749323556254,0.61258447,105850.0,105840.0,0.71322073]
[1749323556707,0.59488538,105850.0,105840.0,0.71322082]
[1749323557328,0.61258449,105850.0,105840.0,0.71322082]
[1749323557549,0.61258449,105850.0,105840.0,0.72266886]
[1749323557755,0.6125845,105850.0,105840.0,0.72266886]
[1749323558173,0.59488538,105850.0,105840.0,0.71322082]
[1749323558582,0.61258449,105850.0,105840.0,0.71322082]
[1749323558837,0.61258449,105850.0,105840.0,0.50536]
[1749323559219,0.61258451,105850.0,105840.0,0.50536]
[1749323559619,0.59488538,105850.0,105840.0,0.50536]
[1749323560428,0.6125845,105850.0,105840.0,0.50536]
[1749323560615,0.59488538,105850.0,105840.0,0.50536]
[1749323560966,0.61258451,105850.0,105840.0,0.50536]
[1749323561198,0.59488538,105850.0,105840.0,0.50536]
[1749323561413,0.6125845,105850.0,105840.0,0.50536]
[1749323562261,0.59488538,105850.0,105840.0,0.70377269]
[1749323562743,0.61258451,105850.0,105840.0,0.70377269]
[1749323563203,0.61258452,105850.0,105840.0,0.70377269]
[1749323563465,0.61258452,105850.0,105840.0,0.72266886]
[1749323563704,0.61258452,105850.0,105840.0,0.71322082]
[1749323564578,0.59488538,105850.0,105840.0,0.50536]
[1749323564785,0.61258452,105850.0,105840.0,0.50536]
[1749323565018,0.59488538,105850.0,105840.0,0.50536]
[1749323565472,0.59488538,105850.0,105840.0,0.69432447]
[1749323565743,0.61258452,105850.0,105840.0,0.69432447]
[1749323565989,0.61258452,105850.0,105840.0,0.50536]
[1749323566229,0.61258452,105850.0,105840.0,0.69432447]
[1749323566469,0.61258452,105850.0,105840.0,0.70377269]
[1749323566709,0.59488538,105850.0,105840.0,0.70377269]
[1749323567033,0.61258452,105850.0,105840.0,0.70377269]
[1749323567232,0.61258451,105850.0,105840.0,0.70377269]
[1749323567438,0.59488538,105850.0,105840.0,0.70377269]
[1749323567632,0.61258452,105850.0,105840.0,0.70377269]
[1749323567843,0.59488538,105850.0,105840.0,0.70377269]
[1749323568047,0.61258452,105850.0,105840.0,0.50536]
[1749323568866,0.61255318,105850.0,105840.0,0.50536]
[1749323569076,0.59488538,105850.0,105840.0,0.50536]
[1749323569244,0.61255318,105850.0,105840.0,0.50536]
[1749323569446,0.59488538,105850.0,105840.0,0.50536]
[1749323569653,0.61255318,105850.0,105840.0,0.50536]
[1749323570052,0.61255319,105850.0,105840.0,0.50536]
[1749323570282,0.59488538,105850.0,105840.0,0.50536]
[1749323571090,0.61255322,105850.0,105840.0,0.50536]
[1749323571573,0.59488538,105850.0,105840.0,0.50536]
[1749323571781,0.61255321,105850.0,105840.0,0.50536]
[1749323571995,0.59488538,105850.0,105840.0,0.50536]
[1749323572240,0.6125532,105850.0,105840.0,0.50536]